[Event "*** Titled Tuesday 3|2 Blitz"]
[Site "Chess.com"]
[Date "2017.06.06"]
[Round "1"]
[White "igorkovalenko"]
[Black "kikydu96"]
[Result "1-0"]
[WhiteElo "2637"]
[BlackElo "2314"]
[TimeControl "180+2"]
[EndTime "13:55:53 PDT"]
[Termination "igorkovalenko won by resignation"]

1. e4 {[%clk 0:03:00.3]} 1... e5 {[%clk 0:02:59.2]} 2. Nf3 {[%clk 0:03:01.3]}
2... Nc6 {[%clk 0:03:00.3]} 3. Bb5 {[%clk 0:03:02.5]} 3... Nf6 {[%clk
0:03:01.7]} 4. O-O {[%clk 0:03:02.6]} 4... Nxe4 {[%clk 0:03:00.8]} 5. d4 {[%clk
0:03:03.9]} 5... Nd6 {[%clk 0:03:01.8]} 6. Bxc6 {[%clk 0:03:05.5]} 6... dxc6
{[%clk 0:03:03.7]} 7. dxe5 {[%clk 0:03:07.4]} 7... Nf5 {[%clk 0:03:05.3]} 8.
Qxd8+ {[%clk 0:03:09.3]} 8... Kxd8 {[%clk 0:03:06.8]} 9. Nc3 {[%clk 0:03:11.1]}
9... Bd7 {[%clk 0:02:53.9]} 10. h3 {[%clk 0:03:11.9]} 10... h6 {[%clk
0:02:46.4]} 11. Rd1 {[%clk 0:03:08.3]} 11... Kc8 {[%clk 0:02:46.9]} 12. g4
{[%clk 0:03:04.3]} 12... Ne7 {[%clk 0:02:47.2]} 13. Kg2 {[%clk 0:03:05.9]} 13...
c5 {[%clk 0:02:40.3]} 14. Kg3 {[%clk 0:03:06.3]} 14... b6 {[%clk 0:02:36.2]} 15.
Be3 {[%clk 0:03:00]} 15... Ng6 {[%clk 0:02:30.7]} 16. Nd5 {[%clk 0:03:00]} 16...
Be6 {[%clk 0:02:25.4]} 17. c4 {[%clk 0:03:00.8]} 17... h5 {[%clk 0:02:18.7]} 18.
b3 {[%clk 0:02:59.5]} 18... c6 {[%clk 0:02:09]} 19. Nf4 {[%clk 0:02:55.6]} 19...
Nxf4 {[%clk 0:02:08.7]} 20. Bxf4 {[%clk 0:02:57.5]} 20... hxg4 {[%clk
0:02:04.8]} 21. hxg4 {[%clk 0:02:59.4]} 21... Be7 {[%clk 0:02:05.8]} 22. Bg5
{[%clk 0:03:00.7]} 22... Bd8 {[%clk 0:00:33]} 23. Bxd8 {[%clk 0:02:49.2]} 23...
Rxd8 {[%clk 0:00:34.9]} 24. Ng5 {[%clk 0:02:49.3]} 24... Rd4 {[%clk 0:00:30.2]}
25. f4 {[%clk 0:02:49.8]} 25... Kc7 {[%clk 0:00:19.5]} 26. f5 {[%clk 0:02:48.7]}
26... Bd7 {[%clk 0:00:12.1]} 27. Nxf7 {[%clk 0:02:49.7]} 27... g6 {[%clk
0:00:13.7]} 28. e6 {[%clk 0:02:49]} 28... gxf5 {[%clk 0:00:12.3]} 29. Rxd4
{[%clk 0:02:49.3]} 29... Bxe6 {[%clk 0:00:11.1]} 30. Ng5 {[%clk 0:02:46.3]}
30... cxd4 {[%clk 0:00:09]} 31. Nxe6+ {[%clk 0:02:47.7]} 31... Kd6 {[%clk
0:00:10.1]} 32. gxf5 {[%clk 0:02:48.3]} 32... Ke5 {[%clk 0:00:10.7]} 33. Re1+
{[%clk 0:02:48.8]} 33... Kxf5 {[%clk 0:00:10.1]} 34. Nxd4+ {[%clk 0:02:50]}
34... Kf6 {[%clk 0:00:11]} 35. Re6+ {[%clk 0:02:51.2]} 1-0

[Event "*** Titled Tuesday 3|2 Blitz"]
[Site "Chess.com"]
[Date "2017.06.06"]
[Round "1"]
[White "CM_Perligero"]
[Black "NTBT_DHS"]
[Result "0-1"]
[WhiteElo "2052"]
[BlackElo "2434"]
[TimeControl "180+2"]
[EndTime "13:56:22 PDT"]
[Termination "NTBT_DHS won by resignation"]

1. d4 {[%clk 0:03:02]} 1... Nf6 {[%clk 0:03:00.5]} 2. c4 {[%clk 0:03:02.5]} 2...
g6 {[%clk 0:03:01.9]} 3. Nc3 {[%clk 0:03:04.1]} 3... Bg7 {[%clk 0:03:03.2]} 4.
e4 {[%clk 0:03:05]} 4... d6 {[%clk 0:03:04.6]} 5. Nf3 {[%clk 0:03:01.6]} 5...
O-O {[%clk 0:03:03]} 6. Bd3 {[%clk 0:03:00.5]} 6... c5 {[%clk 0:02:56.6]} 7. d5
{[%clk 0:02:48.7]} 7... a6 {[%clk 0:02:48.9]} 8. a4 {[%clk 0:02:46.6]} 8... e6
{[%clk 0:02:47.8]} 9. a5 {[%clk 0:02:44.9]} 9... exd5 {[%clk 0:02:48.5]} 10.
cxd5 {[%clk 0:02:44.8]} 10... Bg4 {[%clk 0:02:35.2]} 11. h3 {[%clk 0:02:42.7]}
11... Bxf3 {[%clk 0:02:36.1]} 12. Qxf3 {[%clk 0:02:40.4]} 12... Nbd7 {[%clk
0:02:37.3]} 13. Qe2 {[%clk 0:02:36]} 13... Re8 {[%clk 0:02:22.5]} 14. O-O {[%clk
0:02:35.1]} 14... Qc7 {[%clk 0:02:16.5]} 15. f4 {[%clk 0:02:27.6]} 15... Nxe4
{[%clk 0:02:12.9]} 16. Bxe4 {[%clk 0:02:03.4]} 16... f5 {[%clk 0:02:12.2]} 17.
Re1 {[%clk 0:01:59.1]} 17... Bxc3 {[%clk 0:02:05.1]} 18. bxc3 {[%clk 0:01:58.8]}
18... Rxe4 {[%clk 0:02:06.2]} 19. Qf2 {[%clk 0:01:59.7]} 19... Rae8 {[%clk
0:02:04.6]} 20. Bb2 {[%clk 0:02:00.7]} 20... c4 {[%clk 0:01:57.4]} 21. Ba3
{[%clk 0:01:58.1]} 21... Nf6 {[%clk 0:01:42]} 22. Red1 {[%clk 0:01:51.1]} 22...
Nh5 {[%clk 0:01:32.4]} 23. g3 {[%clk 0:01:47.8]} 23... Re2 {[%clk 0:01:30.1]}
24. Qd4 {[%clk 0:01:44.6]} 24... Nxg3 {[%clk 0:01:26.3]} 25. Qf6 {[%clk
0:01:39.9]} 25... Ne4 {[%clk 0:01:15.9]} 26. Qd4 {[%clk 0:01:28.2]} 26... Qd8
{[%clk 0:01:09.4]} 27. Rf1 {[%clk 0:01:20.4]} 27... Qh4 {[%clk 0:01:05.6]} 28.
Rf3 {[%clk 0:01:20.7]} 28... Nd2 {[%clk 0:00:56.1]} 0-1

[Event "*** Titled Tuesday 3|2 Blitz"]
[Site "Chess.com"]
[Date "2017.06.06"]
[Round "1"]
[White "Tocras"]
[Black "silverback96"]
[Result "0-1"]
[WhiteElo "2401"]
[BlackElo "2112"]
[TimeControl "180+2"]
[EndTime "13:56:28 PDT"]
[Termination "silverback96 won by checkmate"]

1. e4 {[%clk 0:03:02]} 1... e6 {[%clk 0:03:00.5]} 2. d4 {[%clk 0:03:02.2]} 2...
d5 {[%clk 0:03:02]} 3. Nd2 {[%clk 0:03:03.4]} 3... Nf6 {[%clk 0:03:02]} 4. e5
{[%clk 0:03:04.1]} 4... Nfd7 {[%clk 0:03:03.5]} 5. Bd3 {[%clk 0:03:05.8]} 5...
c5 {[%clk 0:03:05]} 6. c3 {[%clk 0:03:07.4]} 6... Nc6 {[%clk 0:03:06.6]} 7. Ne2
{[%clk 0:03:08.1]} 7... cxd4 {[%clk 0:03:07.6]} 8. cxd4 {[%clk 0:03:10]} 8... f6
{[%clk 0:03:09.2]} 9. exf6 {[%clk 0:03:11.2]} 9... Nxf6 {[%clk 0:03:11.1]} 10.
O-O {[%clk 0:03:12.5]} 10... Bd6 {[%clk 0:03:12.6]} 11. Nf3 {[%clk 0:03:14.1]}
11... O-O {[%clk 0:03:14.2]} 12. Bf4 {[%clk 0:03:14.9]} 12... Bxf4 {[%clk
0:03:15.8]} 13. Nxf4 {[%clk 0:03:16.8]} 13... Ne4 {[%clk 0:03:17.7]} 14. Ne2
{[%clk 0:03:09.4]} 14... Rxf3 {[%clk 0:03:16.3]} 15. gxf3 {[%clk 0:03:09.7]}
15... Ng5 {[%clk 0:03:17.9]} 16. f4 {[%clk 0:02:45.7]} 16... Nh3+ {[%clk
0:01:38.5]} 17. Kh1 {[%clk 0:02:31.2]} 17... Qh4 {[%clk 0:01:38.9]} 18. Ng3
{[%clk 0:02:25.9]} 18... Nxf4 {[%clk 0:01:28.1]} 19. Bc2 {[%clk 0:02:18.9]}
19... e5 {[%clk 0:01:27.6]} 20. dxe5 {[%clk 0:02:10.8]} 20... Bh3 {[%clk
0:00:36.3]} 21. Rg1 {[%clk 0:02:11.2]} 21... Nxe5 {[%clk 0:00:30.9]} 22. Bf5
{[%clk 0:02:01.6]} 22... Rf8 {[%clk 0:00:27]} 23. Bxh3 {[%clk 0:01:23]} 23...
Nxh3 {[%clk 0:00:27.1]} 24. Qxd5+ {[%clk 0:01:21.8]} 24... Kh8 {[%clk
0:00:28.3]} 25. Qxe5 {[%clk 0:01:20.1]} 25... Nxf2+ {[%clk 0:00:27.7]} 26. Kg2
{[%clk 0:01:21.2]} 26... Qh3# {[%clk 0:00:25.5]} 0-1

[Event "*** Titled Tuesday 3|2 Blitz"]
[Site "Chess.com"]
[Date "2017.06.06"]
[Round "1"]
[White "macko06"]
[Black "jcibarra"]
[Result "0-1"]
[WhiteElo "2328"]
[BlackElo "2656"]
[TimeControl "180+2"]
[EndTime "13:56:41 PDT"]
[Termination "jcibarra won by resignation"]

1. d4 {[%clk 0:03:02]} 1... Nf6 {[%clk 0:03:00.6]} 2. Bf4 {[%clk 0:03:03]} 2...
d6 {[%clk 0:03:01.7]} 3. Nf3 {[%clk 0:03:03.5]} 3... g6 {[%clk 0:03:02]} 4. e3
{[%clk 0:03:04.1]} 4... Bg7 {[%clk 0:03:03.2]} 5. h3 {[%clk 0:03:03.9]} 5... O-O
{[%clk 0:03:03.7]} 6. Be2 {[%clk 0:03:05]} 6... c5 {[%clk 0:03:04.7]} 7. c3
{[%clk 0:03:04.5]} 7... Be6 {[%clk 0:03:05.2]} 8. Nbd2 {[%clk 0:03:04.8]} 8...
Qb6 {[%clk 0:03:05.3]} 9. O-O {[%clk 0:03:00]} 9... Qxb2 {[%clk 0:02:56.9]} 10.
Rb1 {[%clk 0:03:00.9]} 10... Qxc3 {[%clk 0:02:43]} 11. Rxb7 {[%clk 0:03:01.1]}
11... Nd5 {[%clk 0:02:43.3]} 12. Bg3 {[%clk 0:02:54.1]} 12... Qa5 {[%clk
0:02:27.2]} 13. Rb5 {[%clk 0:02:45.6]} 13... Qd8 {[%clk 0:01:58.1]} 14. Qc2
{[%clk 0:02:35.1]} 14... Bd7 {[%clk 0:01:48.5]} 15. Rbb1 {[%clk 0:02:27.3]}
15... Nc6 {[%clk 0:01:42.3]} 16. dxc5 {[%clk 0:02:16.3]} 16... Nc3 {[%clk
0:01:42.8]} 17. Rbe1 {[%clk 0:02:16]} 17... Nb4 {[%clk 0:01:39.1]} 18. Qb3
{[%clk 0:02:05.6]} 18... dxc5 {[%clk 0:01:36.8]} 19. a3 {[%clk 0:01:09.1]} 19...
Ba4 {[%clk 0:01:33.8]} 20. Qc4 {[%clk 0:01:05.2]} 20... Bb5 {[%clk 0:01:32.5]}
21. Qh4 {[%clk 0:01:01.8]} 21... Nxe2+ {[%clk 0:01:31.2]} 22. Rxe2 {[%clk
0:00:57.5]} 22... Bxe2 {[%clk 0:01:33.1]} 23. axb4 {[%clk 0:00:56.7]} 23... Bxf1
{[%clk 0:01:33]} 24. Nxf1 {[%clk 0:00:56.5]} 24... cxb4 {[%clk 0:01:32.8]} 25.
Qxb4 {[%clk 0:00:58.4]} 25... a5 {[%clk 0:01:28.7]} 26. Qa4 {[%clk 0:00:59]}
26... Qe8 {[%clk 0:01:29.1]} 27. Qa2 {[%clk 0:00:58.7]} 27... a4 {[%clk
0:01:30.2]} 28. N1d2 {[%clk 0:00:57.8]} 28... a3 {[%clk 0:01:31.1]} 29. Nc4
{[%clk 0:00:58.2]} 29... Qa4 {[%clk 0:01:30.4]} 30. Be5 {[%clk 0:00:58.3]} 30...
Bxe5 {[%clk 0:01:01.2]} 31. Ncxe5 {[%clk 0:00:58.5]} 31... Rab8 {[%clk
0:00:59.8]} 0-1

[Event "*** Titled Tuesday 3|2 Blitz"]
[Site "Chess.com"]
[Date "2017.06.06"]
[Round "1"]
[White "Federtiu"]
[Black "Badouuu"]
[Result "1-0"]
[WhiteElo "2419"]
[BlackElo "2017"]
[TimeControl "180+2"]
[EndTime "13:56:42 PDT"]
[Termination "Federtiu won by resignation"]

1. e4 {[%clk 0:03:02]} 1... c5 {[%clk 0:02:56]} 2. Nf3 {[%clk 0:03:02.5]} 2...
Nc6 {[%clk 0:02:56.3]} 3. d4 {[%clk 0:03:02.8]} 3... cxd4 {[%clk 0:02:57.8]} 4.
Nxd4 {[%clk 0:03:04.7]} 4... e5 {[%clk 0:02:58.9]} 5. Nb5 {[%clk 0:03:05.5]}
5... d6 {[%clk 0:02:54.7]} 6. N1c3 {[%clk 0:03:05.3]} 6... a6 {[%clk 0:02:55.5]}
7. Na3 {[%clk 0:03:05.4]} 7... b5 {[%clk 0:02:56.8]} 8. Nd5 {[%clk 0:03:02.8]}
8... Nge7 {[%clk 0:02:56.8]} 9. c4 {[%clk 0:03:02.9]} 9... Nd4 {[%clk
0:02:54.3]} 10. Nc2 {[%clk 0:02:45.8]} 10... Nxd5 {[%clk 0:02:51.8]} 11. cxd5
{[%clk 0:02:41.4]} 11... g6 {[%clk 0:02:28.2]} 12. Nxd4 {[%clk 0:02:34.8]} 12...
exd4 {[%clk 0:02:30.1]} 13. Qxd4 {[%clk 0:02:35.6]} 13... Rg8 {[%clk 0:02:32]}
14. Be3 {[%clk 0:02:19.6]} 14... Bg7 {[%clk 0:02:32.2]} 15. Qd2 {[%clk
0:02:20.3]} 15... Qf6 {[%clk 0:02:30.9]} 16. O-O-O {[%clk 0:02:10.5]} 16... Bd7
{[%clk 0:02:29.8]} 17. Kb1 {[%clk 0:02:05.5]} 17... Rc8 {[%clk 0:02:28.4]} 18.
f4 {[%clk 0:02:02]} 18... Qe7 {[%clk 0:02:27.6]} 19. Bd3 {[%clk 0:01:59]} 19...
Kf8 {[%clk 0:02:18.8]} 20. Rhe1 {[%clk 0:01:58.2]} 20... Qh4 {[%clk 0:02:14.4]}
21. g3 {[%clk 0:01:58.4]} 21... Qd8 {[%clk 0:02:13.8]} 22. Rc1 {[%clk
0:01:49.1]} 22... f6 {[%clk 0:02:08.2]} 23. Qb4 {[%clk 0:01:43.4]} 23... Kf7
{[%clk 0:02:01]} 24. Qxd6 {[%clk 0:01:37.2]} 24... Bf8 {[%clk 0:02:01.2]} 25.
Qb6 {[%clk 0:01:37.2]} 25... Qe7 {[%clk 0:01:52.9]} 26. Rxc8 {[%clk 0:01:33.1]}
26... Bxc8 {[%clk 0:01:53.4]} 27. Rc1 {[%clk 0:01:34.4]} 27... Bd7 {[%clk
0:01:52.9]} 28. Bd4 {[%clk 0:01:29.4]} 28... Bg7 {[%clk 0:01:47.5]} 29. Rc7
{[%clk 0:01:21.9]} 29... Qd8 {[%clk 0:01:48.1]} 30. Qb7 {[%clk 0:01:20.9]} 30...
Ke8 {[%clk 0:01:46.8]} 31. Bb6 {[%clk 0:01:10.1]} 31... g5 {[%clk 0:01:42.6]}
32. Be2 {[%clk 0:01:07.6]} 32... Bf8 {[%clk 0:01:35.5]} 33. Bh5+ {[%clk
0:01:07.6]} 33... Rg6 {[%clk 0:01:34.7]} 34. f5 {[%clk 0:01:05.7]} 34... Qe7
{[%clk 0:01:32.6]} 35. d6 {[%clk 0:00:51.9]} 35... Qxd6 {[%clk 0:01:25.2]} 36.
Rxd7 {[%clk 0:00:52.4]} 36... Qxd7 {[%clk 0:01:23.3]} 37. Qxd7+ {[%clk
0:00:54.3]} 37... Kxd7 {[%clk 0:01:23.8]} 38. fxg6 {[%clk 0:00:56.1]} 38... hxg6
{[%clk 0:01:24.2]} 39. Bxg6 {[%clk 0:00:58]} 39... Kc6 {[%clk 0:01:25.5]} 40.
Be3 {[%clk 0:00:58.5]} 1-0

[Event "*** Titled Tuesday 3|2 Blitz"]
[Site "Chess.com"]
[Date "2017.06.06"]
[Round "1"]
[White "TenisMaster"]
[Black "Vice64"]
[Result "1-0"]
[WhiteElo "2656"]
[BlackElo "2329"]
[TimeControl "180+2"]
[EndTime "13:57:10 PDT"]
[Termination "TenisMaster won on time"]

1. e4 {[%clk 0:03:02]} 1... c5 {[%clk 0:02:59.1]} 2. Nf3 {[%clk 0:03:02.4]} 2...
e6 {[%clk 0:03:01]} 3. d4 {[%clk 0:03:03.1]} 3... cxd4 {[%clk 0:03:02.9]} 4.
Nxd4 {[%clk 0:03:04.2]} 4... Nc6 {[%clk 0:03:04.8]} 5. Nc3 {[%clk 0:03:03.9]}
5... Qc7 {[%clk 0:03:05.7]} 6. f4 {[%clk 0:03:04.5]} 6... a6 {[%clk 0:02:49.6]}
7. Nxc6 {[%clk 0:03:03.2]} 7... Qxc6 {[%clk 0:02:49.3]} 8. Bd3 {[%clk
0:03:00.4]} 8... Bc5 {[%clk 0:02:46.5]} 9. Qe2 {[%clk 0:02:55.4]} 9... Ne7
{[%clk 0:02:29.5]} 10. Bd2 {[%clk 0:02:54.1]} 10... b5 {[%clk 0:02:28.9]} 11. a3
{[%clk 0:02:49.4]} 11... Bb7 {[%clk 0:02:21.7]} 12. O-O-O {[%clk 0:02:47.8]}
12... Rc8 {[%clk 0:02:14.4]} 13. Rhf1 {[%clk 0:02:33.3]} 13... O-O {[%clk
0:01:45.6]} 14. f5 {[%clk 0:02:30]} 14... exf5 {[%clk 0:01:43.7]} 15. exf5
{[%clk 0:02:28.6]} 15... Qxg2 {[%clk 0:01:40.6]} 16. Qh5 {[%clk 0:02:25.3]}
16... g6 {[%clk 0:01:28.1]} 17. Qh6 {[%clk 0:02:05.7]} 17... f6 {[%clk
0:01:17.9]} 18. Ne2 {[%clk 0:01:24.8]} 18... Rf7 {[%clk 0:00:54.8]} 19. Rg1
{[%clk 0:00:48.3]} 19... Bxg1 {[%clk 0:00:53.1]} 20. Rxg1 {[%clk 0:00:49]} 20...
Qc6 {[%clk 0:00:46.5]} 21. fxg6 {[%clk 0:00:49.6]} 21... hxg6 {[%clk 0:00:05.6]}
22. Bxg6 {[%clk 0:00:49.4]} 22... d5 {[%clk 0:00:01.6]} 23. Bh5+ {[%clk
0:00:41.9]} 1-0

[Event "*** Titled Tuesday 3|2 Blitz"]
[Site "Chess.com"]
[Date "2017.06.06"]
[Round "1"]
[White "the_drake"]
[Black "yurisolo"]
[Result "0-1"]
[WhiteElo "2143"]
[BlackElo "2459"]
[TimeControl "180+2"]
[EndTime "13:57:10 PDT"]
[Termination "yurisolo won by checkmate"]

1. e4 {[%clk 0:03:02]} 1... c5 {[%clk 0:03:00.5]} 2. Nf3 {[%clk 0:02:59.6]} 2...
d6 {[%clk 0:03:01.6]} 3. d4 {[%clk 0:02:59.9]} 3... Nf6 {[%clk 0:03:02.6]} 4.
Nc3 {[%clk 0:02:59.8]} 4... cxd4 {[%clk 0:03:03.9]} 5. Nxd4 {[%clk 0:03:00.4]}
5... a6 {[%clk 0:03:04.9]} 6. Be3 {[%clk 0:02:59.4]} 6... e6 {[%clk 0:03:03.5]}
7. f3 {[%clk 0:02:59]} 7... Nc6 {[%clk 0:03:03.1]} 8. Qd2 {[%clk 0:02:59.8]}
8... Be7 {[%clk 0:03:03]} 9. Bc4 {[%clk 0:03:00.2]} 9... O-O {[%clk 0:02:51.6]}
10. Bb3 {[%clk 0:03:00.6]} 10... Qc7 {[%clk 0:02:44.3]} 11. g4 {[%clk
0:03:00.8]} 11... Nxd4 {[%clk 0:02:34.1]} 12. Bxd4 {[%clk 0:03:00.8]} 12... b5
{[%clk 0:02:34.6]} 13. g5 {[%clk 0:02:56.2]} 13... Nd7 {[%clk 0:02:33.5]} 14. h4
{[%clk 0:02:54.9]} 14... Nc5 {[%clk 0:02:10]} 15. h5 {[%clk 0:02:44.5]} 15... b4
{[%clk 0:02:03.4]} 16. Na4 {[%clk 0:02:28.7]} 16... Bd7 {[%clk 0:01:59]} 17.
Qxb4 {[%clk 0:02:16.2]} 17... Nxa4 {[%clk 0:01:42.2]} 18. Bxa4 {[%clk
0:02:13.5]} 18... Rab8 {[%clk 0:01:43.5]} 19. Qa3 {[%clk 0:01:59.3]} 19... Qa5+
{[%clk 0:01:29.1]} 20. Qc3 {[%clk 0:01:58.8]} 20... Qxc3+ {[%clk 0:01:26.3]} 21.
Bxc3 {[%clk 0:01:59.3]} 21... Bxa4 {[%clk 0:01:28.2]} 22. b3 {[%clk 0:02:00.1]}
22... Rfc8 {[%clk 0:01:26.8]} 23. Bd4 {[%clk 0:01:54]} 23... Bd7 {[%clk
0:01:22.1]} 24. g6 {[%clk 0:01:47.1]} 24... Rxc2 {[%clk 0:01:19.2]} 25. gxh7+
{[%clk 0:01:46.4]} 25... Kxh7 {[%clk 0:01:19.8]} 26. h6 {[%clk 0:01:41.1]} 26...
g6 {[%clk 0:01:13.6]} 27. Kd1 {[%clk 0:01:38.1]} 27... Rbc8 {[%clk 0:01:13.7]}
28. Be3 {[%clk 0:01:37.8]} 28... Bf6 {[%clk 0:01:09.9]} 29. Rc1 {[%clk
0:01:37.8]} 29... Rxa2 {[%clk 0:01:08.3]} 30. f4 {[%clk 0:01:26]} 30... Rxc1+
{[%clk 0:01:06.8]} 31. Bxc1 {[%clk 0:01:25.7]} 31... Bc6 {[%clk 0:01:07.8]} 32.
Re1 {[%clk 0:01:22.5]} 32... Bh4 {[%clk 0:01:07.1]} 33. Re3 {[%clk 0:01:22.2]}
33... Bf2 {[%clk 0:01:02.5]} 34. Rf3 {[%clk 0:01:17.9]} 34... Bxe4 {[%clk
0:01:02.3]} 35. Rc3 {[%clk 0:01:14.5]} 35... Bf5 {[%clk 0:00:55.8]} 36. Rc7
{[%clk 0:01:14.4]} 36... Bg4# {[%clk 0:00:56.5]} 0-1

[Event "*** Titled Tuesday 3|2 Blitz"]
[Site "Chess.com"]
[Date "2017.06.06"]
[Round "1"]
[White "axvesik"]
[Black "Jadeit90"]
[Result "1-0"]
[WhiteElo "2489"]
[BlackElo "2147"]
[TimeControl "180+2"]
[EndTime "13:57:11 PDT"]
[Termination "axvesik won by resignation"]

1. e4 {[%clk 0:03:02]} 1... g6 {[%clk 0:02:45.2]} 2. d4 {[%clk 0:03:02.2]} 2...
Bg7 {[%clk 0:02:42]} 3. Nc3 {[%clk 0:03:03.1]} 3... c5 {[%clk 0:02:40.8]} 4. Nf3
{[%clk 0:03:03.3]} 4... cxd4 {[%clk 0:02:33.5]} 5. Nxd4 {[%clk 0:03:03.4]} 5...
Nc6 {[%clk 0:02:34.7]} 6. Be3 {[%clk 0:03:03.3]} 6... Nf6 {[%clk 0:02:34.3]} 7.
Bc4 {[%clk 0:03:04.1]} 7... O-O {[%clk 0:02:35.1]} 8. Bb3 {[%clk 0:03:03]} 8...
d6 {[%clk 0:02:36]} 9. f3 {[%clk 0:03:03]} 9... Nxd4 {[%clk 0:02:36.5]} 10. Bxd4
{[%clk 0:03:03.7]} 10... Be6 {[%clk 0:02:38.4]} 11. Qd2 {[%clk 0:03:03.6]} 11...
Qd7 {[%clk 0:02:26.3]} 12. Nd5 {[%clk 0:02:58.9]} 12... Bxd5 {[%clk 0:02:26.9]}
13. exd5 {[%clk 0:02:59.8]} 13... b5 {[%clk 0:02:26.7]} 14. O-O {[%clk
0:02:58.8]} 14... a5 {[%clk 0:02:27.4]} 15. a4 {[%clk 0:02:59.3]} 15... b4
{[%clk 0:02:28.3]} 16. Rfe1 {[%clk 0:02:55.7]} 16... Rfe8 {[%clk 0:02:23.7]} 17.
c3 {[%clk 0:02:50.3]} 17... bxc3 {[%clk 0:02:23.1]} 18. Bxc3 {[%clk 0:02:51.3]}
18... Nh5 {[%clk 0:02:24.3]} 19. Bxg7 {[%clk 0:02:46.5]} 19... Kxg7 {[%clk
0:02:23.8]} 20. Bc4 {[%clk 0:02:47.2]} 20... Rec8 {[%clk 0:02:21.8]} 21. Bb5
{[%clk 0:02:47.9]} 21... Qa7+ {[%clk 0:02:21.7]} 22. Kh1 {[%clk 0:02:47.4]}
22... Nf6 {[%clk 0:02:21.3]} 23. Rac1 {[%clk 0:02:43.6]} 23... Rab8 {[%clk
0:02:20.6]} 24. Rc6 {[%clk 0:02:15.5]} 24... Rxc6 {[%clk 0:02:18.8]} 25. dxc6
{[%clk 0:02:13.6]} 25... d5 {[%clk 0:02:11.1]} 26. Rc1 {[%clk 0:02:02.3]} 26...
Qc7 {[%clk 0:02:11.1]} 27. b4 {[%clk 0:01:49.7]} 27... axb4 {[%clk 0:02:00.1]}
28. Qxb4 {[%clk 0:01:50.5]} 28... Ra8 {[%clk 0:01:54.4]} 29. Rb1 {[%clk
0:01:06.6]} 29... Ne8 {[%clk 0:01:39.3]} 30. Qd4+ {[%clk 0:01:01.6]} 30... Nf6
{[%clk 0:01:39.3]} 31. f4 {[%clk 0:01:01.7]} 31... e6 {[%clk 0:01:37.6]} 32. g4
{[%clk 0:00:51.6]} 32... e5 {[%clk 0:01:13.3]} 33. fxe5 {[%clk 0:00:51.1]} 33...
Ne4 {[%clk 0:01:11.3]} 34. e6+ {[%clk 0:00:47.2]} 34... Nf6 {[%clk 0:00:51.1]}
35. g5 {[%clk 0:00:46.1]} 1-0

[Event "*** Titled Tuesday 3|2 Blitz"]
[Site "Chess.com"]
[Date "2017.06.06"]
[Round "1"]
[White "Blitzstream"]
[Black "dtn70"]
[Result "1-0"]
[WhiteElo "2512"]
[BlackElo "2214"]
[TimeControl "180+2"]
[EndTime "13:57:18 PDT"]
[Termination "Blitzstream won by resignation"]

1. g3 {[%clk 0:02:46.3]} 1... Nf6 {[%clk 0:02:58.3]} 2. Bg2 {[%clk 0:02:45.5]}
2... g6 {[%clk 0:02:59.2]} 3. b3 {[%clk 0:02:46.4]} 3... Bg7 {[%clk 0:02:59.8]}
4. Bb2 {[%clk 0:02:48.2]} 4... O-O {[%clk 0:03:00.1]} 5. d3 {[%clk 0:02:49.1]}
5... d6 {[%clk 0:03:01.2]} 6. Nd2 {[%clk 0:02:49.7]} 6... e5 {[%clk 0:03:01.9]}
7. e3 {[%clk 0:02:50.2]} 7... Bg4 {[%clk 0:02:51.2]} 8. Ne2 {[%clk 0:02:49.9]}
8... c6 {[%clk 0:02:49.1]} 9. h3 {[%clk 0:02:50.2]} 9... Be6 {[%clk 0:02:47.7]}
10. a3 {[%clk 0:02:50]} 10... Nbd7 {[%clk 0:02:47.9]} 11. c4 {[%clk 0:02:39.5]}
11... Nh5 {[%clk 0:02:40.3]} 12. g4 {[%clk 0:02:38]} 12... Nhf6 {[%clk
0:02:38.8]} 13. Ng3 {[%clk 0:02:38.3]} 13... Ne8 {[%clk 0:02:36.5]} 14. Qe2
{[%clk 0:02:29.4]} 14... Kh8 {[%clk 0:02:32.9]} 15. h4 {[%clk 0:02:24.9]} 15...
h6 {[%clk 0:02:24.5]} 16. g5 {[%clk 0:02:21.4]} 16... h5 {[%clk 0:02:23.5]} 17.
Rf1 {[%clk 0:02:02.7]} 17... Nc7 {[%clk 0:02:22]} 18. O-O-O {[%clk 0:01:54.9]}
18... a5 {[%clk 0:02:22.4]} 19. f4 {[%clk 0:01:53.9]} 19... exf4 {[%clk
0:02:14.8]} 20. Bxg7+ {[%clk 0:01:49]} 20... Kxg7 {[%clk 0:02:15.2]} 21. exf4
{[%clk 0:01:47.8]} 21... Bg4 {[%clk 0:02:11.5]} 22. Nf3 {[%clk 0:01:47.3]} 22...
Re8 {[%clk 0:02:11.8]} 23. Qb2+ {[%clk 0:01:47.7]} 23... Kh7 {[%clk 0:02:10.7]}
24. Rde1 {[%clk 0:01:40.4]} 24... Nc5 {[%clk 0:02:08.9]} 25. Qc3 {[%clk
0:01:33.3]} 25... a4 {[%clk 0:02:01.1]} 26. b4 {[%clk 0:01:32.8]} 26... Nb3+
{[%clk 0:02:01.2]} 27. Kb2 {[%clk 0:01:33.1]} 27... d5 {[%clk 0:02:00.9]} 28.
Ne5 {[%clk 0:01:21.4]} 28... Be6 {[%clk 0:01:49.7]} 29. f5 {[%clk 0:01:18.7]}
29... d4 {[%clk 0:01:41.3]} 30. Qc2 {[%clk 0:01:18.7]} 30... Bxf5 {[%clk
0:01:29.5]} 31. Nxf5 {[%clk 0:01:18.4]} 31... gxf5 {[%clk 0:01:30.5]} 32. Qe2
{[%clk 0:01:18.8]} 32... Rxe5 {[%clk 0:01:01.2]} 33. Qxh5+ {[%clk 0:01:15.7]}
33... Kg7 {[%clk 0:01:01.3]} 34. Rxe5 {[%clk 0:01:15.3]} 34... Ne6 {[%clk
0:00:51.7]} 35. Qh6+ {[%clk 0:01:12.4]} 35... Kg8 {[%clk 0:00:51]} 36. Rexf5
{[%clk 0:01:12.7]} 36... Nd2 {[%clk 0:00:45.9]} 37. Rxf7 {[%clk 0:01:12]} 1-0